[Event "Spring Chess Classic B 2024"]
[Site "Saint Louis"]
[Date "2024.04.16"]
[Round "5.2"]
[White "Budisavljevic, Luka"]
[Black "Ali Marandi, Cemil Can"]
[Result "0-1"]
[ECO "E71"]
[WhiteElo "2483"]
[BlackElo "2516"]
[Annotator "RC"]
[PlyCount "99"]
[EventDate "2024.04.11"]
[EventCountry "USA"]
[SourceTitle "playchess.com"]
[Source "ChessBase"]
[SourceQuality "1"]
[TimeControl "7200+30"]

1. d4 {[%emt 0:00:09]} Nf6 {[%emt 0:00:07]} 2. c4 {[%emt 0:00:13]} g6 {[%emt 0:00:12]} 3. Nc3 {[%emt 0:00:17]} Bg7 {[%emt 0:00:14]} 4. e4 {[%emt 0:00:19]} d6 {[%emt 0:00:20]} 5. h3 {[%emt 0:01:20]} O-O {[%emt 0:02:10]} 6. Be3 {[%emt 0:00:33]} e5 {[%emt 0:01:53]} 7. d5 {[%emt 0:00:21]} a5 {[%emt 0:00:53]} 8. g4 {[%emt 0:00:36]} Na6 {[%emt 0:01:42]} 9. Nge2 {[%emt 0:04:57]} h5 {[%emt 0:07:10]} 10. f3 {[%emt 0:08:39]} Ne8 {[%emt 0:08:08]} 11. Qd2 {[%emt 0:02:14]} f5 {[%emt 0:07:41]} 12. gxf5 {[%emt 0:11:10]} gxf5 {[%emt 0:00:32]} 13. Bg5 {[%emt 0:02:58]} Bf6 {[%emt 0:05:19]} 14. Rg1 {[%emt 0:04:57]} Kh7 {[%emt 0:02:40]} 15. f4 {[%emt 0:03:06]} Nc5 {[%emt 0:11:43]} 16. O-O-O {[%emt 0:05:47]} Ng7 {[%emt 0:05:55]} 17. h4 {[%emt 0:04:18]} fxe4 {[%emt 0:20:59]} 18. Ng3 {[%emt 0:12:28]} Bxg5 {[%emt 0:01:53]} 19. fxg5 {[%emt 0:02:01]} Rf4 {[%emt 0:00:16]} 20. Ncxe4 {[%emt 0:03:59]} Nxe4 {[%emt 0:10:26]} 21. Nxe4 {[%emt 0:00:07]} Bf5 {[%emt 0:00:32]} 22. Nf6+ {[%emt 0:07:32]} Kg6 {[%emt 0:05:55]} 23. Be2 {[%emt 0:00:49]} Qe7 {[%emt 0:00:49]} 24. Rdf1 {[%emt 0:05:58]} Rxh4 {[%emt 0:03:48]} 25. Bd3 {[%emt 0:11:23]} e4 {[%emt 0:06:31]} 26. Qe1 {[%emt 0:00:01]} Rh2 {[%emt 0:01:45]} 27. Bxe4 {[%emt 0:00:24]} Qe5 {[%emt 0:01:22]} 28. Bxf5+ {[%emt 0:00:11]} Nxf5 {[%emt 0:00:08]} 29. Qxe5 {[%emt 0:00:04]} dxe5 {[%emt 0:00:04]} 30. Kb1 {[%emt 0:02:56]} Ne3 {[%emt 0:04:40]} 31. Rf3 {[%emt 0:04:52]} Nxc4 {[%emt 0:00:47]} 32. Ne4 {[%emt 0:00:49]} Nd2+ {[%emt 0:04:36]} 33. Nxd2 {[%emt 0:00:01]} Rxd2 {[%emt 0:00:04]} 34. Rf6+ {[%emt 0:01:12]} Kg7 {[%emt 0:00:06]} 35. Re6 {[%emt 0:01:06]} Rxd5 {[%emt 0:02:26]} 36. Rf1 {[%emt 0:08:32]} Rf8 {[%emt 0:02:32]} 37. Re7+ {[%emt 0:00:56]} Kg8 {[%emt 0:00:06]} 38. Rxf8+ {[%emt 0:03:48]} Kxf8 {[%emt 0:00:03]} 39. Rxc7 {[%emt 0:00:18]} e4 {[%emt 0:01:32]} 40. g6 {[%emt 0:00:04]} e3 {[%emt 0:02:56]} 41. Rf7+ {[%emt 0:00:11]} Kg8 {[%emt 0:00:22]} 42. Re7 {[%emt 0:00:07]} h4 {[%emt 0:00:39]} 43. Rxe3 {[%emt 0:04:19]} Rh5 {[%emt 0:01:59]} 44. Rh3 {[%emt 0:01:12]} Kg7 {[%emt 0:00:06]} 45. Kc2 {[%emt 0:00:01]} Kxg6 {[%emt 0:00:08]} 46. Kd3 {[%emt 0:00:04]} Kg5 {[%emt 0:00:36]} 47. Ke4 {[%emt 0:00:39]} Kg4 {[%emt 0:00:59]} 48. Rh1 {[%emt 0:00:01]} Kg3 {[%emt 0:00:12]} 49. Rg1+ {[%emt 0:00:04]} Kf2 {[%emt 0:00:14]} 50. Rh1 {[%emt 0:00:36]} 0-1

[Event "Spring Chess Classic B 2024"]
[Site "Saint Louis"]
[Date "2024.04.16"]
[Round "5.3"]
[White "Chandra, Akshat"]
[Black "Batsuren, Dambasuren"]
[Result "0-1"]
[ECO "C54"]
[WhiteElo "2489"]
[BlackElo "2515"]
[Annotator "RC"]
[PlyCount "128"]
[EventDate "2024.04.11"]
[EventCountry "USA"]
[SourceTitle "playchess.com"]
[Source "ChessBase"]
[SourceQuality "1"]
[TimeControl "7200+30"]

1. e4 {[%emt 0:00:03]} e5 {[%emt 0:00:37]} 2. Nf3 {[%emt 0:00:08]} Nc6 {[%emt 0:00:07]} 3. Bc4 {[%emt 0:00:04]} Nf6 {[%emt 0:00:14]} 4. d3 {[%emt 0:00:04]} Bc5 {[%emt 0:00:12]} 5. O-O {[%emt 0:00:33]} d6 {[%emt 0:00:44]} 6. c3 {[%emt 0:00:17]} h6 {[%emt 0:01:18]} 7. Re1 {[%emt 0:05:43]} O-O {[%emt 0:01:19]} 8. b4 {[%emt 0:08:16]} Bb6 {[%emt 0:00:14]} 9. Bb3 {[%emt 0:00:09]} Ne7 {[%emt 0:12:59]} 10. Nbd2 {[%emt 0:08:56]} c6 {[%emt 0:02:29]} 11. d4 {[%emt 0:01:45]} Ng6 {[%emt 0:00:30]} 12. h3 {[%emt 0:13:57]} Re8 {[%emt 0:09:57]} 13. Qc2 {[%emt 0:24:05]} Nh5 {[%emt 0:11:40]} 14. Nc4 {[%emt 0:04:39]} Bc7 {[%emt 0:01:00]} 15. dxe5 {[%emt 0:04:34]} dxe5 {[%emt 0:17:48]} 16. Ne3 {[%emt 0:07:19]} Nh4 {[%emt 0:06:37]} 17. Qd1 {[%emt 0:15:03]} Qxd1 {[%emt 0:20:55]} 18. Bxd1 {[%emt 0:00:04]} Nxf3+ {[%emt 0:00:23]} 19. Bxf3 {[%emt 0:00:04]} Nf4 {[%emt 0:00:22]} 20. Rd1 {[%emt 0:01:11]} a5 {[%emt 0:01:52]} 21. h4 {[%emt 0:01:51]} Rd8 {[%emt 0:06:38]} 22. Rxd8+ {[%emt 0:19:17]} Bxd8 {[%emt 0:00:06]} 23. g3 {[%emt 0:00:12]} Nd3 {[%emt 0:09:09]} 24. Bd2 {[%emt 0:00:06]} axb4 {[%emt 0:03:06]} 25. cxb4 {[%emt 0:00:03]} Be7 {[%emt 0:00:33]} 26. Nc2 {[%emt 0:03:33]} c5 {[%emt 0:01:50]} 27. bxc5 {[%emt 0:01:28]} Bxc5 {[%emt 0:00:31]} 28. Be3 {[%emt 0:00:02]} Be6 {[%emt 0:01:22]} 29. Bxc5 {[%emt 0:05:40]} Nxc5 {[%emt 0:00:19]} 30. a3 {[%emt 0:00:05]} Ra4 {[%emt 0:02:00]} 31. Nb4 {[%emt 0:01:07]} Nb3 {[%emt 0:00:22]} 32. Rd1 {[%emt 0:00:39]} Rxa3 {[%emt 0:00:52]} 33. Rd8+ {[%emt 0:00:59]} Kh7 {[%emt 0:00:05]} 34. Rb8 {[%emt 0:01:35]} Nc5 {[%emt 0:02:42]} 35. Bg2 {[%emt 0:01:49]} Ra4 {[%emt 0:03:37]} 36. Nc2 {[%emt 0:01:21]} Rc4 {[%emt 0:03:32]} 37. Ne3 {[%emt 0:00:13]} Rb4 {[%emt 0:00:07]} 38. Nd5 {[%emt 0:01:11]} Rb1+ {[%emt 0:02:13]} 39. Kh2 {[%emt 0:00:02]} Rb2 {[%emt 0:00:21]} 40. Kg1 {[%emt 0:00:03]} Nd3 {[%emt 0:03:50]} 41. f4 {[%emt 0:00:10]} Ne1 {[%emt 0:02:54]} 42. Bh1 {[%emt 0:00:09]} Bg4 {[%emt 0:02:36]} 43. Rf8 {[%emt 0:02:47]} Rb1 {[%emt 0:00:59]} 44. Kh2 {[%emt 0:00:42]} Nf3+ {[%emt 0:00:49]} 45. Bxf3 {[%emt 0:00:14]} Bxf3 {[%emt 0:00:01]} 46. g4 {[%emt 0:00:10]} Bxe4 {[%emt 0:00:31]} 47. Nc3 {[%emt 0:00:07]} Rb2+ {[%emt 0:00:47]} 48. Kg1 {[%emt 0:00:01]} Bc6 {[%emt 0:00:39]} 49. fxe5 {[%emt 0:00:19]} Rg2+ {[%emt 0:00:18]} 50. Kf1 {[%emt 0:00:01]} Rg3 {[%emt 0:00:25]} 51. Ne2 {[%emt 0:00:33]} Rxg4 {[%emt 0:00:36]} 52. Rxf7 {[%emt 0:00:15]} Re4 {[%emt 0:00:49]} 53. Ng3 {[%emt 0:00:42]} Rxe5 {[%emt 0:00:13]} 54. Kf2 {[%emt 0:00:49]} Kg6 {[%emt 0:00:37]} 55. Rc7 {[%emt 0:00:11]} h5 {[%emt 0:00:13]} 56. Rc8 {[%emt 0:00:24]} Re8 {[%emt 0:00:22]} 57. Rc7 {[%emt 0:00:23]} Rf8+ {[%emt 0:00:14]} 58. Kg1 {[%emt 0:00:30]} Rf3 {[%emt 0:01:16]} 59. Ne2 {[%emt 0:00:15]} Kh6 {[%emt 0:00:25]} 60. Rc8 {[%emt 0:01:59]} Kh7 {[%emt 0:00:03]} 61. Rd8 {[%emt 0:00:22]} Re3 {[%emt 0:01:04]} 62. Nf4 {[%emt 0:00:46]} Rg3+ {[%emt 0:00:13]} 63. Kh2 {[%emt 0:00:04]} Rg4 {[%emt 0:00:14]} 64. Rf8 {[%emt 0:01:53]} Rxh4+ {[%emt 0:00:26]} 0-1

[Event "Spring Chess Classic B 2024"]
[Site "Saint Louis"]
[Date "2024.04.16"]
[Round "5.4"]
[White "Van Foreest, Lucas"]
[Black "Woodward, Andy"]
[Result "1-0"]
[ECO "E60"]
[WhiteElo "2512"]
[BlackElo "2515"]
[Annotator "RC"]
[PlyCount "96"]
[EventDate "2024.04.11"]
[EventCountry "USA"]
[SourceTitle "playchess.com"]
[Source "ChessBase"]
[SourceQuality "1"]
[TimeControl "7200+30"]

1. d4 {[%emt 0:00:27]} Nf6 {[%emt 0:00:16]} 2. c4 {[%emt 0:00:24]} g6 {[%emt 0:00:13]} 3. h4 {[%emt 0:00:30]} c6 {[%emt 0:01:56]} 4. Nc3 {[%emt 0:09:45]} d5 {[%emt 0:00:26]} 5. cxd5 {[%emt 0:00:31]} cxd5 {[%emt 0:00:11]} 6. Bf4 {[%emt 0:00:12]} Bg7 {[%emt 0:00:26]} 7. e3 {[%emt 0:00:17]} O-O {[%emt 0:02:40]} 8. Be2 {[%emt 0:00:33]} Nc6 {[%emt 0:00:49]} 9. Nf3 {[%emt 0:01:29]} Bg4 {[%emt 0:04:56]} 10. O-O {[%emt 0:06:28]} e6 {[%emt 0:14:28]} 11. Rc1 {[%emt 0:01:53]} Rc8 {[%emt 0:04:43]} 12. Bh2 {[%emt 0:03:08]} h6 {[%emt 0:04:45]} 13. Nd2 {[%emt 0:03:40]} Bxe2 {[%emt 0:02:52]} 14. Qxe2 {[%emt 0:00:10]} a6 {[%emt 0:03:19]} 15. Na4 {[%emt 0:04:46]} Qe7 {[%emt 0:06:04]} 16. Rfd1 {[%emt 0:10:46]} e5 {[%emt 0:17:45]} 17. Nb6 {[%emt 0:07:19]} Rcd8 {[%emt 0:03:31]} 18. dxe5 {[%emt 0:00:11]} Nxe5 {[%emt 0:00:10]} 19. Nf3 {[%emt 0:00:30]} Nc6 {[%emt 0:05:32]} 20. Qd3 {[%emt 0:06:44]} d4 {[%emt 0:03:56]} 21. exd4 {[%emt 0:13:22]} Ng4 {[%emt 0:01:10]} 22. d5 {[%emt 0:08:45]} Nxh2 {[%emt 0:08:10]} 23. Nxh2 {[%emt 0:00:16]} Nd4 {[%emt 0:00:51]} 24. Re1 {[%emt 0:08:18]} Qb4 {[%emt 0:06:18]} 25. Nc4 {[%emt 0:00:08]} Rxd5 {[%emt 0:00:09]} 26. Nf1 {[%emt 0:07:49]} b5 {[%emt 0:01:50]} 27. Qe4 {[%emt 0:01:08]} Rfd8 {[%emt 0:05:54]} 28. a3 {[%emt 0:00:22]} Qf8 {[%emt 0:02:25]} 29. Nce3 {[%emt 0:00:19]} R5d7 {[%emt 0:04:03]} 30. b4 {[%emt 0:01:13]} f5 {[%emt 0:01:00]} 31. Qb1 {[%emt 0:01:50]} Qf7 {[%emt 0:00:57]} 32. Nc2 {[%emt 0:01:42]} Ne6 {[%emt 0:03:00]} 33. Rcd1 {[%emt 0:01:31]} Nf4 {[%emt 0:01:24]} 34. Rxd7 {[%emt 0:00:48]} Rxd7 {[%emt 0:00:02]} 35. Nce3 {[%emt 0:00:22]} Bf6 {[%emt 0:02:26]} 36. Nh2 {[%emt 0:04:58]} Rd2 {[%emt 0:05:33]} 37. Nf3 {[%emt 0:00:20]} Ne2+ {[%emt 0:01:06]} 38. Kh1 {[%emt 0:06:04]} Nc3 {[%emt 0:01:43]} 39. Qc1 {[%emt 0:00:22]} Rd7 {[%emt 0:03:41]} 40. h5 {[%emt 0:00:35]} Kh7 {[%emt 0:01:50]} 41. Qc2 {[%emt 0:01:38]} Ne4 {[%emt 0:00:18]} 42. Kg1 {[%emt 0:00:04]} Rc7 {[%emt 0:01:46]} 43. hxg6+ {[%emt 0:00:21]} Kxg6 {[%emt 0:00:09]} 44. Qb1 {[%emt 0:00:08]} Qe6 {[%emt 0:01:32]} 45. Nxf5 {[%emt 0:04:30]} Qxf5 {[%emt 0:00:15]} 46. Rxe4 {[%emt 0:00:05]} Rc4 {[%emt 0:00:07]} 47. Nd2 {[%emt 0:00:45]} Rd4 {[%emt 0:01:42]} 48. g4 {[%emt 0:01:04]} Rd5 {[%emt 0:02:15]} 1-0

[Event "Spring Chess Classic B 2024"]
[Site "Saint Louis"]
[Date "2024.04.16"]
[Round "5.5"]
[White "Stearman, Josiah"]
[Black "Kantor, Gergely"]
[Result "0-1"]
[ECO "E28"]
[WhiteElo "2462"]
[BlackElo "2527"]
[Annotator "RC"]
[PlyCount "72"]
[EventDate "2024.04.11"]
[EventCountry "USA"]
[SourceTitle "playchess.com"]
[Source "ChessBase"]
[SourceQuality "1"]
[TimeControl "7200+30"]

1. d4 {[%emt 0:00:12]} Nf6 {[%emt 0:00:23]} 2. c4 {[%emt 0:00:02]} e6 {[%emt 0:00:03]} 3. Nc3 {[%emt 0:00:10]} Bb4 {[%emt 0:00:06]} 4. e3 {[%emt 0:00:25]} O-O {[%emt 0:00:25]} 5. a3 {[%emt 0:00:06]} Bxc3+ {[%emt 0:00:36]} 6. bxc3 {[%emt 0:00:06]} b6 {[%emt 0:04:22]} 7. Bd3 {[%emt 0:00:27]} Bb7 {[%emt 0:00:11]} 8. f3 {[%emt 0:00:20]} c5 {[%emt 0:00:23]} 9. e4 {[%emt 0:00:07]} Nc6 {[%emt 0:00:27]} 10. Nh3 {[%emt 0:00:17]} d6 {[%emt 0:10:44]} 11. Be3 {[%emt 0:00:45]} Nd7 {[%emt 0:35:30]} 12. O-O {[%emt 0:01:24]} cxd4 {[%emt 0:01:34]} 13. cxd4 {[%emt 0:00:04]} e5 {[%emt 0:00:06]} 14. d5 {[%emt 0:00:03]} Na5 {[%emt 0:00:10]} 15. f4 {[%emt 0:00:07]} exf4 {[%emt 0:09:42]} 16. Nxf4 {[%emt 0:00:08]} Ne5 {[%emt 0:00:27]} 17. Bd4 {[%emt 0:02:58]} Qg5 {[%emt 0:02:30]} 18. Rc1 {[%emt 0:04:32]} Bc8 {[%emt 0:21:42]} 19. Rc3 {[%emt 0:05:22]} Qe7 {[%emt 0:00:12]} 20. Be2 {[%emt 0:04:12]} f5 {[%emt 0:11:14]} 21. Nh5 {[%emt 0:16:01]} g6 {[%emt 0:02:20]} 22. Rg3 {[%emt 0:11:10]} Bd7 {[%emt 0:04:20]} 23. exf5 {[%emt 0:13:26]} Rxf5 {[%emt 0:01:30]} 24. Re1 {[%emt 0:09:07]} Re8 {[%emt 0:04:23]} 25. Bc3 {[%emt 0:01:57]} Qf8 {[%emt 0:03:58]} 26. c5 {[%emt 0:05:11]} dxc5 {[%emt 0:01:23]} 27. Ba6 {[%emt 0:01:08]} Qd6 {[%emt 0:01:21]} 28. Re4 {[%emt 0:04:36]} Ref8 {[%emt 0:03:06]} 29. Qe2 {[%emt 0:05:01]} Re8 {[%emt 0:06:55]} 30. Nf4 {[%emt 0:02:40]} Nb3 {[%emt 0:00:22]} 31. Ne6 {[%emt 0:03:03]} Bxe6 {[%emt 0:00:54]} 32. Bxe5 {[%emt 0:03:43]} Qxd5 {[%emt 0:00:25]} 33. Bc4 {[%emt 0:06:39]} Qd2 {[%emt 0:01:11]} 34. Bf4 {[%emt 0:02:15]} Qxe2 {[%emt 0:00:31]} 35. Rxe2 {[%emt 0:00:12]} Nd4 {[%emt 0:00:38]} 36. Re4 {[%emt 0:00:31]} Rxf4 {[%emt 0:00:28]} 0-1

[Event "Spring Chess Classic B 2024"]
[Site "Saint Louis"]
[Date "2024.04.17"]
[Round "6.2"]
[White "Woodward, Andy"]
[Black "Stearman, Josiah"]
[Result "1/2-1/2"]
[ECO "A62"]
[WhiteElo "2515"]
[BlackElo "2462"]
[Annotator "TA"]
[PlyCount "92"]
[EventDate "2024.04.11"]
[EventCountry "USA"]
[SourceTitle "playchess.com"]
[Source "ChessBase"]
[SourceQuality "1"]
[TimeControl "7200+30"]

{[%evp 18,92,12,26,26,0,21,0,7,0,14,0,0,9,0,-35,-41,-58,-39,-49,-44,-55,-49,-65,-70,-42,-56,-142,-136,-136,-131,-240,-90,-198,-179,-206,-232,-233,-229,-203,-214,-252,-252,-253,-257,-254,-257,-264,-264,-293,-286,-293,-286,-279,-264,-262,-179,-165,-64,-62,-14,-14,-14,-14,-14,-14,-14,-14,0,0,0,0,0,0,0,0,0]} 1. d4 {[%emt 0:00:03]} Nf6 {[%emt 0:00:55]} 2. c4 {[%emt 0:00:15]} e6 {[%emt 0:00:03]} 3. g3 {[%emt 0:00:14]} c5 {[%emt 0:00:07]} 4. d5 {[%emt 0:00:08]} exd5 {[%emt 0:00:04]} 5. cxd5 {[%emt 0:00:14]} d6 {[%emt 0:00:05]} 6. Nc3 {[%emt 0:00:12]} g6 {[%emt 0:00:11]} 7. Bg2 {[%emt 0:00:08]} Bg7 {[%emt 0:00:04]} 8. Nf3 {[%emt 0:00:10]} O-O {[%emt 0:00:13]} 9. O-O {[%emt 0:00:05]} Re8 {[%emt 0:00:14]} 10. Bf4 {[%emt 0:00:22]} Bf5 {[%emt 0:00:36]} 11. Rc1 {[%emt 0:00:12]} Ne4 {[%emt 0:07:01]} 12. Nd2 {[%emt 0:00:20]} Nxc3 {[%emt 0:11:23]} 13. bxc3 {[%emt 0:00:10]} g5 {[%emt 0:00:26]} 14. e4 {[%emt 0:00:09]} Bg6 {[%emt 0:04:44]} 15. Be3 {[%emt 0:00:17]} Nd7 {[%emt 0:00:24]} 16. h3 {[%emt 0:07:07]} b5 {[%emt 0:09:22]} 17. a4 {[%emt 0:05:39]} a6 {[%emt 0:02:24]} 18. Rb1 {[%emt 0:16:39]} Rb8 $1 {[%emt 0:06:36]} 19. axb5 {[%emt 0:02:26]} axb5 {[%emt 0:00:12]} (19... Bxc3 $2 20. bxa6 Qa5 21. Qe2 $18 (21. Bxg5 Qxa6 22. Rc1 Bg7 $16)) 20. Qe2 {[%emt 0:00:42]} c4 $1 {[%emt 0:01:08]} (20... Bxc3 21. Rxb5 Qe7 22. Rfb1 $11) 21. Ba7 {[%emt 0:01:18]} Rb7 {[%emt 0:19:23]} 22. Nxc4 {[%emt 0:12:56]} (22. Be3 $1 $15) 22... Nf6 $17 {[%emt 0:13:05]} (22... Rxa7 23. Nxd6 Re7 24. Nxb5 $17) 23. Bd4 {[%emt 0:23:34]} Nxe4 {[%emt 0:00:54]} 24. Bxg7 {[%emt 0:07:23]} (24. Bxe4 $17 Bxe4 25. Bxg7 Bxb1 (25... Kxg7 26. Ne3 $17) 26. Ne3) 24... Kxg7 {[%emt 0:02:06]} (24... Nxg3 $19 25. Qxe8+ Qxe8 26. fxg3 Qb8 (26... Kxg7 $2 27. Nxd6 Qe3+ 28. Kh2 $19) (26... bxc4 $2 27. Rxb7 Kxg7 28. Rf3 $19)) 25. Qe3 {[%emt 0:13:58]} (25. Qd1 $17 {was worth a try.}) 25... Qc7 $36 {[%emt 0:16:14][%mdl 2048] Black is really pushing.} 26. Na3 {[%emt 0:19:11]} Qxc3 {[%emt 0:02:17]} 27. Rxb5 {[%emt 0:02:46]} Qxe3 {[%emt 0:00:58]} 28. fxe3 {[%emt 0:00:03] [#]} Ra7 {[%emt 0:00:54]} 29. Bxe4 {[%emt 0:05:34]} Bxe4 {[%emt 0:01:37]} (29... Rxa3 30. Bxg6 Kxg6 (30... hxg6 31. Rb7 $11) 31. Rb6 $15) (29... Rxe4 30. Rb3 $17) 30. Nc4 {[%emt 0:00:23]} Bd3 {[%emt 0:01:35][%csl LRc4,LRf1]} 31. Nxd6 {[%emt 0:00:09]} Bxb5 {[%emt 0:04:36]} (31... Rxe3 32. Nf5+ Bxf5 33. Rxf5 $15) 32. Nxb5 $19 {[%emt 0:00:12][%mdl 4096] Endgame. KRR-KRN} Rd7 {[%emt 0:00:24]} 33. Nd4 {[%emt 0:02:14]} Rxd5 {[%emt 0:01:02]} 34. g4 {[%emt 0:00:23][%cal Bg3g4,Bg4h5][%mdl 32]} Kg6 {[%emt 0:00:54]} ({Less strong is} 34... Rxe3 35. Nf5+ Rxf5 36. Rxf5 $15) 35. Kf2 {[%emt 0:00:08]} h5 {[%emt 0:00:49]} 36. Rb1 {[%emt 0:00:23]} Rde5 {[%emt 0:01:19]} 37. Rb6+ {[%emt 0:00:43]} f6 {[%emt 0:00:32]} ({Black should try} 37... Kh7 $19 38. gxh5 Rxe3) 38. gxh5+ $1 $15 {[%emt 0:02:37]} Kg7 {[%emt 0:02:35]} ({Much weaker is} 38... Kxh5 39. Rxf6 Rh8 (39... Rxe3 40. Nf5 $11) 40. Nf5 $11) (38... Kf7 $15) 39. e4 $1 $11 {[%emt 0:02:08] The position is equal.} Rxe4 {[%emt 0:01:54]} 40. Nf5+ {[%emt 0:00:53]} Kg8 {[%emt 0:02:29] [#] Strongly threatening ...Rf4+.} 41. Rxf6 {[%emt 0:00:25]} Rf4+ {[%emt 0:01:05]} 42. Kg3 {[%emt 0:00:11]} Re1 {[%emt 0:01:05]} 43. Rg6+ {[%emt 0:00:21]} Kh7 {[%emt 0:00:30]} 44. Rh6+ {[%emt 0:00:07]} Kg8 {[%emt 0:00:04]} 45. Rg6+ {[%emt 0:00:05]} Kh7 {[%emt 0:00:02]} 46. Rh6+ {[%emt 0:00:06]} Kg8 {[%emt 0:00:04] And White is the lucky defender.   Weighted Error Value: White=0.16 (very precise) /Black=0.14 (very precise) .  Mistake:       	White=3     	Black=3      Inaccurate:     	White=2     	Black=1      OK:         	White=16    	Black=14     Best:        	White=1     	Black=5      Strong:       	White=2     	Black=2} 1/2-1/2

[Event "Spring Chess Classic B 2024"]
[Site "Saint Louis"]
[Date "2024.04.17"]
[Round "6.3"]
[White "Batsuren, Dambasuren"]
[Black "Van Foreest, Lucas"]
[Result "1-0"]
[ECO "D27"]
[WhiteElo "2515"]
[BlackElo "2512"]
[Annotator "TA"]
[PlyCount "111"]
[EventDate "2024.04.11"]
[EventCountry "USA"]
[SourceTitle "playchess.com"]
[Source "ChessBase"]
[SourceQuality "1"]
[TimeControl "7200+30"]

{[%evp 36,111,48,61,93,60,65,60,69,70,169,164,220,221,239,239,231,237,226,222,269,231,243,228,211,212,245,233,277,253,292,167,235,244,240,233,225,218,193,196,235,237,276,251,281,280,255,198,229,242,228,218,222,226,272,276,262,259,333,324,362,351,458,452,1303,1127,12839,12829,5609,2023,29970,29970,29974,29975,29975,29975,29980,29978]} 1. d4 {[%emt 0:00:17]} d5 {[%emt 0:00:31]} 2. c4 {[%emt 0:00:06]} dxc4 {[%emt 0:00:10]} 3. Nf3 {[%emt 0:00:58]} Nf6 {[%emt 0:00:07]} 4. e3 {[%emt 0:00:06]} e6 {[%emt 0:00:09]} 5. Bxc4 {[%emt 0:00:16]} a6 {[%emt 0:00:11]} 6. O-O {[%emt 0:01:20]} c5 {[%emt 0:00:14]} 7. Bb3 {[%emt 0:02:54]} b5 {[%emt 0:00:21] 7...cxd4 is not played anymore.} 8. a4 {[%emt 0:01:24]} Bb7 {[%emt 0:00:57]} 9. axb5 {[%emt 0:23:28] D27: Queen's Gambit Accepted: Classical main line: 7 e4!? and 7 a4.} axb5 {[%emt 0:00:33]} 10. Rxa8 {[%emt 0:00:17]} Bxa8 {[%emt 0:01:01]} 11. dxc5 $1 {[%emt 0:08:12][%mdl 4] is now more promising than 11.Qe2.} Bxc5 {[%emt 0:43:00]} 12. Qxd8+ {[%emt 0:16:39]} Kxd8 {[%emt 0:00:16]} 13. Nc3 {[%emt 0:00:07]} b4 {[%emt 0:15:20]} 14. Na4 {[%emt 0:07:14]} Nbd7 {[%emt 0:00:19]} 15. Nxc5 {[%emt 0:19:23]} Nxc5 {[%emt 0:00:12]} 16. Bc4 {[%emt 0:00:10]} Bd5 {[%emt 0:09:27]} 17. Bd2 $146 {[%emt 0:03:24]} ({Predecessor:} 17. Be2 Ke7 18. Bd2 Rb8 19. Ra1 Rb7 20. Be1 Nfd7 21. Ra5 b3 22. Nd4 f5 23. f3 {½-½ Seres,L (2417)-Siddharth,J (2331) Budapest FS09 GM 2021 (2)}) 17... Bxc4 {[%emt 0:25:03]} 18. Rc1 {[%emt 0:01:00]} Bd5 {[%emt 0:02:29]} 19. Rxc5 {[%emt 0:00:11]} Nd7 {[%emt 0:06:02]} 20. Rb5 {[%emt 0:10:10]} Kc7 {[%emt 0:01:00]} 21. Bxb4 {[%emt 0:03:15]} f6 {[%emt 0:00:59]} 22. Nd4 {[%emt 0:02:31]} Ne5 {[%emt 0:03:35]} (22... Rb8 $14) 23. e4 $1 $18 {[%emt 0:05:09]} Bxe4 {[%emt 0:00:50]} (23... Nc6 $142 24. exd5 Nxd4 25. d6+ Kc6 26. Rc5+ Kb6) 24. Nxe6+ $18 {[%emt 0:00:35]} Kc6 {[%emt 0:01:24] [#]} 25. Rc5+ $1 {[%emt 0:00:52]} Kb6 {[%emt 0:02:04]} 26. Ba5+ {[%emt 0:00:48]} (26. Nxg7 Rg8 27. f3 Rxg7 28. fxe4 Nd3 $19) 26... Ka6 {[%emt 0:01:23]} 27. Bc3 {[%emt 0:00:55]} (27. Nxg7 Rg8 28. f3 Nd7 $17) 27... Nd3 {[%emt 0:02:23]} 28. Rc4 {[%emt 0:02:39]} Bg6 {[%emt 0:01:55]} 29. Ra4+ {[%emt 0:00:40]} (29. Nxg7 Kb5 $18) 29... Kb5 {[%emt 0:00:29]} 30. Ra7 {[%emt 0:01:08]} Kc4 {[%emt 0:02:30]} 31. Nxg7 {[%emt 0:04:07]} ({But not} 31. Rxg7 Re8) 31... Rd8 {[%emt 0:00:24]} 32. h3 {[%emt 0:01:34]} Rd6 {[%emt 0:00:20]} 33. Re7 {[%emt 0:03:10]} (33. f4 $142 Rd5 34. Bxf6) 33... Ra6 {[%emt 0:00:24]} (33... Nf4 $142 34. Ne8 Rd1+ 35. Kh2 Nd5) 34. f3 $18 {[%emt 0:07:14]} Nf4 {[%emt 0:00:09]} 35. Kh2 {[%emt 0:02:16]} Nd5 {[%emt 0:00:43]} 36. Re6 {[%emt 0:00:38]} Ra7 {[%emt 0:02:16]} 37. Ne8 {[%emt 0:01:15]} (37. Bxf6 Nxf6 38. Rc6+ Kd5 39. Rxf6 Rxg7 $19) 37... Nxc3 {[%emt 0:01:49]} 38. bxc3 {[%emt 0:00:11]} Kd5 {[%emt 0:00:14]} 39. Re1 {[%emt 0:01:09]} ({Not} 39. Rxf6 Bxe8 40. Rf4 Rc7 $11) 39... Rf7 {[%emt 0:01:03]} 40. Rd1+ {[%emt 0:01:15]} Ke6 {[%emt 0:00:15]} 41. Rd4 {[%emt 0:00:36]} Re7 {[%emt 0:00:36]} 42. Nd6 {[%emt 0:01:10]} Rc7 {[%emt 0:00:01]} 43. Nb5 {[%emt 0:00:19]} Rc5 {[%emt 0:00:05]} 44. c4 {[%emt 0:00:07]} Ke7 {[%emt 0:00:58]} 45. Nc3 {[%emt 0:00:23]} Ke6 {[%emt 0:00:35]} 46. Kg3 {[%emt 0:01:03]} Bf7 {[%emt 0:00:38]} 47. Ne4 {[%emt 0:00:27]} Rc6 {[%emt 0:00:29]} 48. c5 {[%emt 0:00:43]} Ke5 {[%emt 0:00:32]} 49. Rd6 {[%emt 0:00:05]} Rxd6 {[%emt 0:00:14]} (49... Rc8 $142 50. Nxf6 (50. Rxf6 Bg6 $18) 50... Rxc5) 50. Nxd6 $18 {[%emt 0:00:40]} Be6 {[%emt 0:00:45]} 51. f4+ {[%emt 0:00:42]} Kd5 {[%emt 0:00:10]} 52. Ne8 {[%emt 0:00:10]} (52. f5 $142 Bg8 53. Kf4) 52... Kxc5 {[%emt 0:00:17]} 53. Nxf6 {[%emt 0:00:09]} Bf5 {[%emt 0:00:02]} 54. Kh4 {[%emt 0:00:12]} Kd6 {[%emt 0:00:06]} 55. g4 {[%emt 0:00:23]} Ke6 {[%emt 0:00:06]} 56. Kg5 {[%emt 0:01:06]} 1-0